fUST/lending_fUST_20260404
["ID","MTS","AMOUNT","RATE_DAILY","PERIOD"]
[419658611,1775260239089,-216.37217077,0.00023685,2]
[419658612,1775260239099,-500.0,0.00023685,2]
[419658613,1775260239108,-500.0,0.00023685,2]
[419658614,1775260239118,-500.0,0.00023685,2]
[419658615,1775260239127,-500.0,0.00023685,2]
[419658616,1775260239137,-500.0,0.00023685,2]
[419658617,1775260239146,-285.77967577,0.00023685,2]
[419658618,1775260239156,-500.0,0.00023685,2]
[419658619,1775260239166,-500.0,0.00023685,2]
[419658620,1775260239175,-500.0,0.00023685,2]
[419658621,1775260239185,-500.0,0.00023685,2]
[419658622,1775260239194,-11.61542714,0.00023685,2]
[419658623,1775260239206,-488.38457286,0.00023685,2]
[419658624,1775260239215,-500.0,0.00023685,2]
[419658625,1775260239226,-500.0,0.00023685,2]
[419658626,1775260239235,-500.0,0.00023685,2]
[419658627,1775260239244,-500.0,0.00023685,2]
[419658628,1775260239253,-500.0,0.00023685,2]
[419658629,1775260239262,-500.0,0.00023685,2]
[419658630,1775260239270,-500.0,0.00023685,2]
[419658631,1775260239279,-289.49994618,0.00023685,2]
[419658632,1775260239287,-4373.91784665,0.00023686,2]
[419658633,1775260239298,-4680.196529,0.00023686,2]
[419658634,1775260239309,-32483.78745073,0.00023686,2]
[419658636,1775260241242,-1000.0,0.00023686,2]
[419658665,1775260247013,-138242.13196329,0.00023686,2]
[419658707,1775260831709,200.0,0.00031076,120]
[419658709,1775260900187,-1000.0,0.00013292,2]
[419658711,1775260965370,669.9,0.0003,120]
[419658714,1775261070739,200.0,0.00032709,120]
[419658716,1775261131209,200.0,0.00032672,120]
[419658719,1775261191007,200.0,0.00032333,120]
[419658848,1775261431400,200.0,0.00030789,120]
[419658870,1775261433565,-406.71999995,0.00013426,2]
[419658871,1775261433577,-68.25169878,0.00013426,2]
[419658872,1775261433587,-605.82450622,0.00013699,2]
[419658878,1775261438845,-394.17549378,0.00013699,2]
[419658879,1775261438857,-281.90699013,0.00019389,2]
[419658880,1775261438867,-295.72066586,0.00019611,2]
[419658881,1775261438876,-181.0,0.00022,2]
[419658882,1775261438885,-1200.0,0.00022107,2]
[419658883,1775261438894,-300.0,0.00022107,2]
[419658884,1775261438903,-300.0,0.00022108,2]
[419658885,1775261438912,-300.0,0.00022108,2]
[419658886,1775261438921,-300.0,0.00022108,2]
[419658887,1775261438931,-300.0,0.00022109,2]
[419658888,1775261438940,-11676.5325761,0.0002211,2]
[419658889,1775261438950,-300.0,0.00022551,10]
[419658890,1775261438959,-300.0,0.00022551,10]
[419658891,1775261438968,-300.0,0.00022551,10]
[419658892,1775261438977,-300.0,0.00022551,10]
[419658893,1775261438986,-300.0,0.00022551,10]
[419658894,1775261438995,-300.0,0.00022551,10]
[419658895,1775261439004,-300.0,0.00022551,10]
[419658897,1775261439014,-300.0,0.00022551,10]
[419658898,1775261439024,-300.0,0.00022551,10]
[419658899,1775261439034,-300.0,0.00022551,10]
[419658900,1775261439044,-300.0,0.00022551,10]
[419658901,1775261439053,-300.0,0.00022551,10]
[419658902,1775261439063,-300.0,0.00022551,10]
[419658903,1775261439073,-300.0,0.00022551,10]
[419658904,1775261439082,-300.0,0.00022551,10]
[419658906,1775261439092,-600.0,0.00023001,10]
[419658908,1775261439100,-324.8141513,0.0002323,2]
[419658910,1775261439109,-9224.58906073,0.00023376,2]
[419658912,1775261439118,-500.0,0.00023401,2]
[419658914,1775261439128,-500.0,0.00023401,2]
[419658916,1775261439137,-296.50142857,0.00023401,2]
[419658917,1775261439146,-6330.85,0.00023466,3]
[419658918,1775261439156,-4154.69,0.00023466,3]
[419658919,1775261439165,-270.83333333,0.00023466,3]
[419658920,1775261439174,-2077.34,0.00023466,3]
[419658921,1775261439183,-1038.67,0.00023466,3]
[419658922,1775261439192,-519.34,0.00023466,3]
[419658923,1775261439201,-259.67,0.00023466,3]
[419658924,1775261439211,-779.02,0.00023466,3]
[419658925,1775261439220,-500.0,0.00023473,2]
[419658926,1775261439230,-500.0,0.00023473,2]
[419658927,1775261439239,-500.0,0.00023473,2]
[419658928,1775261439249,-172003.83421539,0.00023476,2]
[419658929,1775261439260,-27093.57086457,0.00023476,2]
[419659304,1775261444223,-28610.48739404,0.00023476,2]
[419659307,1775261444235,-3871.1214413,0.00023476,2]
[419659596,1775261447052,-15904.16168999,0.00023476,2]
[419659597,1775261447107,-3008.28133464,0.00023476,2]
[419659598,1775261447118,-368.1946,0.00023476,2]
[419659599,1775261447129,-2213.92499483,0.00023476,2]
[419659600,1775261447141,-8803.03813991,0.00023476,2]
[419659601,1775261447161,-19427.52454623,0.00023476,2]
[419659602,1775261447217,-8060.83831112,0.00023476,2]
[419660474,1775261610780,200.0,0.00026951,120]
[419660481,1775261670730,200.0,0.00032304,120]
[419660489,1775261730988,200.0,0.00031387,120]
[419660493,1775261791108,200.0,0.00032656,120]
[419660506,1775261947170,1379.2796,0.0003287,120]
[419660584,1775262631826,-1000.0,0.00013699,2]
[419660585,1775262631836,-300.0,0.00022341,2]
[419660586,1775262631846,-162.469983,0.00022474,2]
[419660587,1775262631856,-1200.0,0.00023174,2]
[419660588,1775262631865,-500.0,0.00023175,2]
[419660589,1775262631875,-202.64996233,0.00023175,2]
[419660590,1775262631884,-500.0,0.00023175,2]
[419660591,1775262631894,-500.0,0.00023175,2]
[419660592,1775262631903,-500.0,0.00023175,2]
[419660593,1775262631912,-485.98200524,0.00023175,2]
[419660594,1775262631922,-500.0,0.00023175,2]
[419660595,1775262631931,-1125.78737959,0.00023175,2]
[419660599,1775262637934,-500.0,0.00023175,2]
[419660600,1775262637944,-274.63003042,0.00023175,2]
[419660601,1775262637954,-500.0,0.00023175,2]
[419660602,1775262637966,-500.0,0.00023175,2]
[419660603,1775262637975,-500.0,0.00023175,2]
[419660604,1775262637985,-500.0,0.00023175,2]
[419660605,1775262637994,-500.0,0.00023175,2]
[419660606,1775262638003,-500.0,0.00023175,2]
[419660607,1775262638012,-500.0,0.00023175,2]
[419660608,1775262638022,-500.0,0.00023175,2]
[419660609,1775262638031,-500.0,0.00023175,2]
[419660610,1775262638040,-500.0,0.00023175,2]
[419660611,1775262638050,-500.0,0.00023175,2]
[419660612,1775262638059,-500.0,0.00023175,2]
[419660613,1775262638068,-500.0,0.00023175,2]
[419660614,1775262638078,-388.5937526,0.00023175,2]
[419660615,1775262638088,-207.47259614,0.00023175,2]
[419660616,1775262638098,-500.0,0.00023175,2]
[419660617,1775262638107,-500.0,0.00023175,2]
[419660618,1775262638117,-500.0,0.00023175,2]
[419660619,1775262638127,-500.0,0.00023175,2]
[419660620,1775262638137,-500.0,0.00023175,2]
[419660621,1775262638146,-500.0,0.00023175,2]
[419660622,1775262638156,-500.0,0.00023175,2]
[419660623,1775262638165,-500.0,0.00023175,2]
[419660624,1775262638175,-594.88734014,0.00023175,2]
[419660625,1775262638184,-300.0,0.00023175,2]
[419660626,1775262638193,-300.0,0.00023175,2]
[419660627,1775262638202,-300.0,0.00023175,2]
[419660628,1775262638211,-59759.32136202,0.00023176,2]
[419660939,1775262643059,-2803.53049772,0.00023176,2]
[419660941,1775262643071,-673.32755196,0.00023176,2]
[419660963,1775262643271,-202197.09717133,0.00023176,2]
[419660965,1775262643281,-4884.99,0.00023266,3]
[419660967,1775262643291,-3010.52,0.00023266,3]
[419660969,1775262643300,-1505.26,0.00023266,3]
[419660971,1775262643309,-752.63,0.00023266,3]
[419660973,1775262643319,-376.32,0.00023266,3]
[419660975,1775262643328,-188.16,0.00023266,3]
[419660977,1775262643338,-564.5,0.00023266,3]
[419660979,1775262643348,-270.83333333,0.00023266,3]
[419660981,1775262643358,-500.0,0.00023273,2]
[419660983,1775262643367,-500.0,0.00023273,2]
[419660985,1775262643376,-500.0,0.00023273,2]
[419660987,1775262643386,-500.0,0.00023273,2]
[419660989,1775262643396,-500.0,0.00023273,2]
[419660991,1775262643406,-500.0,0.00023275,2]
[419660993,1775262643415,-270.83333333,0.00023338,2]
[419660995,1775262643425,-180.776,0.00023365,2]
[419660997,1775262643434,-200.0,0.00023365,2]
[419661000,1775262643443,-155.27427413,0.00023373,2]
[419661002,1775262643453,-500.0,0.00023374,2]
[419661005,1775262643463,-500.0,0.00023375,2]
[419661008,1775262643473,-500.0,0.00023375,2]
[419661011,1775262643483,-3108.9455516,0.00023401,2]
[419661014,1775262643493,-500.0,0.00023549,2]
[419661016,1775262643503,-737.35709062,0.00023566,2]
[419661018,1775262643513,-599.60298507,0.00023566,2]
[419661020,1775262643523,-990.81544809,0.00023566,2]
[419661032,1775262643633,-1407.59649221,0.00023566,2]
[419661034,1775262643643,-191.22,0.00023789,7]
[419661036,1775262643653,-1000.0,0.00023821,2]
[419661038,1775262643663,-1000.0,0.00023821,2]
[419661040,1775262643673,-1000.0,0.00023821,2]
[419661042,1775262643683,-1000.0,0.00023821,2]
[419661044,1775262643693,-1000.0,0.00023821,2]
[419661046,1775262643703,-500.0,0.00023823,2]
[419661048,1775262643713,-169.0,0.00023844,3]
[419661050,1775262643723,-300.0,0.00023944,10]
[419661052,1775262643733,-300.0,0.00023944,10]
[419661054,1775262643743,-300.0,0.00023944,10]
[419661056,1775262643752,-300.0,0.00023944,10]
[419661058,1775262643762,-300.0,0.00023944,10]
[419661060,1775262643771,-300.0,0.00023944,10]
[419661062,1775262643781,-300.0,0.00023944,10]
[419661064,1775262643791,-300.0,0.00023944,10]
[419661066,1775262643800,-300.0,0.00023944,10]
[419661068,1775262643810,-300.0,0.00023944,10]
[419661070,1775262643820,-300.0,0.00023944,10]
[419661072,1775262643830,-300.0,0.00023944,10]
[419661074,1775262643840,-300.0,0.00023944,10]
[419661076,1775262643849,-300.0,0.00023944,10]
[419661078,1775262643859,-300.0,0.00023944,10]
[419661080,1775262643869,-600.0,0.00023944,10]
[419661082,1775262643879,-1720.67471968,0.00023993,2]
[419661084,1775262643890,-500.0,0.00024097,2]
[419661086,1775262643900,-621.78829552,0.00024114,2]
[419661088,1775262643910,-2487.15318209,0.00024114,2]
[419661090,1775262643920,-162.0,0.00024164,3]
[419661092,1775262643930,-471.225,0.00024176,2]
[419661094,1775262643939,-184.0,0.00024176,2]
[419661096,1775262643949,-200.0,0.00024221,2]
[419661098,1775262643959,-167.12608959,0.00024223,2]
[419661100,1775262643969,-1500.0,0.00024368,2]
[419661102,1775262643979,-1500.0,0.00024368,2]
[419661104,1775262643989,-1500.0,0.00024368,2]
[419661106,1775262644000,-1500.0,0.00024368,2]
[419661108,1775262644011,-1592.49108393,0.00024368,2]
[419661110,1775262644020,-500.0,0.00024371,2]
[419661112,1775262644030,-151.0,0.00024387,2]
[419661114,1775262644039,-151.0,0.00024387,2]
[419661116,1775262644049,-151.0,0.00024387,2]
[419661118,1775262644059,-151.0,0.00024387,2]
[419661120,1775262644069,-151.0,0.00024387,2]
[419661122,1775262644078,-151.0,0.00024387,2]
[419661123,1775262644087,-151.0,0.00024387,2]
[419661125,1775262644096,-151.0,0.00024387,2]
[419661127,1775262644105,-151.0,0.00024387,2]
[419661128,1775262644115,-151.0,0.00024387,2]
[419661130,1775262644124,-151.0,0.00024387,2]
[419661132,1775262644135,-151.0,0.00024387,2]
[419661134,1775262644145,-151.0,0.00024387,2]
[419661136,1775262644155,-151.0,0.00024387,2]
[419661137,1775262644164,-151.0,0.00024387,2]
[419661139,1775262644174,-246.607153,0.00024387,2]
[419661141,1775262644183,-151.0,0.00024387,2]
[419661143,1775262644194,-151.0,0.00024387,2]
[419661144,1775262644203,-151.0,0.00024387,2]
[419661146,1775262644213,-151.0,0.00024387,2]
[419661148,1775262644223,-151.0,0.00024387,2]
[419661149,1775262644232,-151.0,0.00024387,2]
[419661151,1775262644242,-200.203952,0.00024387,2]
[419661153,1775262644251,-193.885446,0.00024387,2]
[419661155,1775262644261,-193.885446,0.00024387,2]
[419661156,1775262644271,-193.885446,0.00024387,2]
[419661158,1775262644280,-193.885446,0.00024387,2]
[419661160,1775262644289,-193.885446,0.00024387,2]
[419661162,1775262644298,-193.885446,0.00024387,2]
[419661164,1775262644307,-193.885446,0.00024387,2]
[419661166,1775262644316,-193.885446,0.00024387,2]
[419661167,1775262644326,-151.0,0.00024387,2]
[419661169,1775262644337,-151.0,0.00024387,2]
[419661171,1775262644347,-151.0,0.00024387,2]
[419661172,1775262644357,-151.0,0.00024387,2]
[419661174,1775262644366,-151.0,0.00024387,2]
[419661176,1775262644375,-151.0,0.00024387,2]
[419661178,1775262644384,-151.0,0.00024387,2]
[419661179,1775262644393,-151.0,0.00024387,2]
[419661181,1775262644403,-151.0,0.00024387,2]
[419661183,1775262644412,-151.0,0.00024387,2]
[419661184,1775262644421,-151.0,0.00024387,2]
[419661186,1775262644430,-151.0,0.00024387,2]
[419661188,1775262644439,-151.0,0.00024387,2]
[419661190,1775262644448,-151.0,0.00024387,2]
[419661192,1775262644458,-151.0,0.00024387,2]
[419661194,1775262644467,-151.0,0.00024387,2]
[419661195,1775262644477,-151.0,0.00024387,2]
[419661197,1775262644487,-151.0,0.00024387,2]
[419661199,1775262644496,-151.0,0.00024387,2]
[419661201,1775262644505,-246.892166,0.00024387,2]
[419661203,1775262644515,-246.892166,0.00024387,2]
[419661205,1775262644524,-246.892166,0.00024387,2]
[419661206,1775262644534,-151.0,0.00024387,2]
[419661208,1775262644543,-246.892166,0.00024387,2]
[419661210,1775262644552,-151.0,0.00024387,2]
[419661212,1775262644561,-246.892166,0.00024387,2]
[419661213,1775262644570,-151.0,0.00024387,2]
[419661215,1775262644579,-246.892166,0.00024387,2]
[419661217,1775262644589,-151.0,0.00024387,2]
[419661219,1775262644598,-246.892166,0.00024387,2]
[419661221,1775262644607,-151.0,0.00024387,2]
[419661222,1775262644616,-246.892166,0.00024387,2]
[419661224,1775262644625,-151.0,0.00024387,2]
[419661226,1775262644634,-151.0,0.00024387,2]
[419661228,1775262644643,-151.0,0.00024387,2]
[419661230,1775262644652,-151.0,0.00024387,2]
[419661232,1775262644661,-151.0,0.00024387,2]
[419661233,1775262644671,-151.0,0.00024387,2]
[419661235,1775262644681,-151.0,0.00024387,2]
[419661237,1775262644692,-286.424296,0.00024387,2]
[419661239,1775262644705,-151.0,0.00024387,2]
[419661241,1775262644717,-151.0,0.00024387,2]
[419661244,1775262644730,-151.0,0.00024387,2]
[419661246,1775262644742,-151.0,0.00024387,2]
[419661248,1775262644754,-631.980692,0.00024387,2]
[419661250,1775262644764,-631.980692,0.00024387,2]
[419661251,1775262644774,-631.980692,0.00024387,2]
[419661253,1775262644787,-631.980692,0.00024387,2]
[419661255,1775262644798,-631.980692,0.00024387,2]
[419661257,1775262644810,-631.980692,0.00024387,2]
[419661260,1775262644822,-631.980692,0.00024387,2]
[419661262,1775262644834,-631.980692,0.00024387,2]
[419661264,1775262644846,-151.0,0.00024387,2]
[419661266,1775262644857,-151.074387,0.00024387,2]
[419661268,1775262644868,-726.199394,0.00024387,2]
[419661270,1775262644881,-726.199394,0.00024387,2]
[419661272,1775262644893,-726.199394,0.00024387,2]
[419661274,1775262644905,-726.199394,0.00024387,2]
[419661276,1775262644916,-726.199394,0.00024387,2]
[419661278,1775262644927,-726.199394,0.00024387,2]
[419661280,1775262644939,-726.199394,0.00024387,2]
[419661282,1775262644950,-726.199394,0.00024387,2]
[419661284,1775262644962,-726.199394,0.00024387,2]
[419661286,1775262644972,-726.199394,0.00024387,2]
[419661288,1775262644982,-726.199394,0.00024387,2]
[419661289,1775262644992,-726.199394,0.00024387,2]
[419661291,1775262645002,-155.0,0.00024387,3]
[419661293,1775262645014,-166.0,0.00024387,3]
[419661295,1775262645023,-946.0,0.00024387,3]
[419661297,1775262645036,-202.17212089,0.00024387,3]
[419661299,1775262645047,-155.0,0.00024387,3]
[419661302,1775262645059,-946.0,0.00024387,3]
[419661304,1775262645072,-200.0,0.00024387,3]
[419661306,1775262645083,-155.0,0.00024387,3]
[419661308,1775262645093,-946.0,0.00024387,3]
[419661310,1775262645106,-151.0,0.00024387,3]
[419661312,1775262645117,-166.0,0.00024387,3]
[419661314,1775262645129,-155.0,0.00024387,3]
[419661316,1775262645140,-946.0,0.00024387,3]
[419661318,1775262645153,-155.0,0.00024387,3]
[419661320,1775262645163,-166.0,0.00024387,3]
[419661322,1775262645173,-647.0,0.00024387,3]
[419661324,1775262645183,-946.0,0.00024387,3]
[419661326,1775262645192,-155.0,0.00024387,3]
[419661327,1775262645202,-205.10230401,0.00024387,3]
[419661330,1775262645214,-647.0,0.00024387,3]
[419661332,1775262645226,-946.0,0.00024387,3]
[419661334,1775262645239,-155.0,0.00024387,3]
[419661336,1775262645248,-647.0,0.00024387,3]
[419661338,1775262645259,-339.0,0.00024387,3]
[419661340,1775262645270,-946.0,0.00024387,3]
[419661343,1775262645281,-155.0,0.00024387,3]
[419661345,1775262645294,-339.0,0.00024387,3]
[419661347,1775262645305,-647.0,0.00024387,3]
[419661349,1775262645316,-946.0,0.00024387,3]
[419661351,1775262645327,-153.54905084,0.00024387,3]
[419661354,1775262645339,-339.0,0.00024387,3]
[419661356,1775262645350,-946.0,0.00024387,3]
[419661358,1775262645360,-647.0,0.00024387,3]
[419661360,1775262645371,-339.0,0.00024387,3]
[419661362,1775262645381,-946.0,0.00024387,3]
[419661364,1775262645391,-339.0,0.00024387,3]
[419661366,1775262645401,-946.0,0.00024387,3]
[419661367,1775262645411,-647.0,0.00024387,3]
[419661369,1775262645422,-339.0,0.00024387,3]
[419661371,1775262645433,-946.0,0.00024387,3]
[419661373,1775262645444,-339.0,0.00024387,3]
[419661376,1775262645454,-647.0,0.00024387,3]
[419661379,1775262645465,-946.0,0.00024387,3]
[419661382,1775262645475,-647.0,0.00024387,3]
[419661385,1775262645485,-339.0,0.00024387,3]
[419661389,1775262645496,-946.0,0.00024387,3]
[419661392,1775262645507,-339.0,0.00024387,3]
[419661395,1775262645518,-647.0,0.00024387,3]
[419661398,1775262645528,-946.0,0.00024387,3]
[419661402,1775262645538,-647.0,0.00024387,3]
[419661405,1775262645548,-339.0,0.00024387,3]
[419661408,1775262645559,-647.0,0.00024387,3]
[419661410,1775262645569,-339.0,0.00024387,3]
[419661412,1775262645579,-946.0,0.00024387,3]
[419661414,1775262645591,-946.0,0.00024387,3]
[419661416,1775262645601,-339.0,0.00024387,3]
[419661418,1775262645611,-647.0,0.00024387,3]
[419661420,1775262645622,-946.0,0.00024387,3]
[419661422,1775262645632,-339.0,0.00024387,3]
[419661424,1775262645643,-647.0,0.00024387,3]
[419661425,1775262645653,-946.0,0.00024387,3]
[419661427,1775262645664,-339.0,0.00024387,3]
[419661429,1775262645674,-647.0,0.00024387,3]
[419661431,1775262645684,-946.0,0.00024387,3]
[419661433,1775262645696,-339.0,0.00024387,3]
[419661435,1775262645706,-647.0,0.00024387,3]
[419661437,1775262645717,-946.0,0.00024387,3]
[419661439,1775262645727,-339.0,0.00024387,3]
[419661441,1775262645737,-647.0,0.00024387,3]
[419661443,1775262645748,-946.0,0.00024387,3]
[419661445,1775262645758,-339.0,0.00024387,3]
[419661447,1775262645768,-647.0,0.00024387,3]
[419661449,1775262645779,-339.0,0.00024387,3]
[419661451,1775262645790,-946.0,0.00024387,3]
[419661453,1775262645801,-647.0,0.00024387,3]
[419661455,1775262645811,-339.0,0.00024387,3]
[419661457,1775262645822,-373.45924367,0.00024387,3]
[419661459,1775262645832,-647.0,0.00024387,3]
[419661461,1775262645843,-647.0,0.00024387,3]
[419661463,1775262645853,-339.0,0.00024387,3]
[419661465,1775262645864,-339.0,0.00024387,3]
[419661467,1775262645875,-647.0,0.00024387,3]
[419661479,1775262645886,-339.0,0.00024387,3]
[419661481,1775262646018,-647.0,0.00024387,3]
[419661483,1775262646027,-339.0,0.00024387,3]
[419661485,1775262646036,-647.0,0.00024387,3]
[419661487,1775262646047,-339.0,0.00024387,3]
[419661488,1775262646056,-339.0,0.00024387,3]
[419661490,1775262646065,-647.0,0.00024387,3]
[419661492,1775262646075,-339.0,0.00024387,3]
[419661494,1775262646085,-647.0,0.00024387,3]
[419661496,1775262646096,-339.0,0.00024387,3]
[419661497,1775262646105,-647.0,0.00024387,3]
[419661499,1775262646115,-339.0,0.00024387,3]
[419661501,1775262646125,-647.0,0.00024387,3]
[419661503,1775262646134,-339.0,0.00024387,3]
[419661505,1775262646144,-439.50052244,0.00024387,3]
[419661507,1775262646154,-339.0,0.00024387,3]
[419661508,1775262646164,-339.0,0.00024387,3]
[419661510,1775262646174,-339.0,0.00024387,3]
[419661512,1775262646184,-339.0,0.00024387,3]
[419661514,1775262646194,-339.0,0.00024387,3]
[419661516,1775262646203,-339.0,0.00024387,3]
[419661518,1775262646213,-339.0,0.00024387,3]
[419661520,1775262646223,-339.0,0.00024387,3]
[419661522,1775262646233,-339.0,0.00024387,3]
[419661523,1775262646243,-339.0,0.00024387,3]
[419661525,1775262646253,-339.0,0.00024387,3]
[419661527,1775262646263,-339.0,0.00024387,3]
[419661529,1775262646272,-339.0,0.00024387,3]
[419661531,1775262646283,-339.0,0.00024387,3]
[419661533,1775262646293,-339.0,0.00024387,3]
[419661535,1775262646303,-339.0,0.00024387,3]
[419661537,1775262646313,-339.0,0.00024387,3]
[419661539,1775262646322,-339.0,0.00024387,3]
[419661540,1775262646332,-339.0,0.00024387,3]
[419661542,1775262646342,-339.0,0.00024387,3]
[419661544,1775262646352,-339.0,0.00024387,3]
[419661546,1775262646362,-339.0,0.00024387,3]
[419661548,1775262646371,-339.0,0.00024387,3]
[419661550,1775262646381,-339.0,0.00024387,3]
[419661552,1775262646390,-339.0,0.00024387,3]
[419661553,1775262646399,-339.0,0.00024387,3]
[419661555,1775262646410,-339.0,0.00024387,3]
[419661557,1775262646419,-339.0,0.00024387,3]
[419661559,1775262646429,-339.0,0.00024387,3]
[419661561,1775262646439,-339.0,0.00024387,3]
[419661563,1775262646449,-339.0,0.00024387,3]
[419661564,1775262646458,-339.0,0.00024387,3]
[419661566,1775262646468,-339.0,0.00024387,3]
[419661568,1775262646478,-339.0,0.00024387,3]
[419661570,1775262646487,-339.0,0.00024387,3]
[419661572,1775262646497,-339.0,0.00024387,3]
[419661573,1775262646507,-339.0,0.00024387,3]
[419661575,1775262646516,-339.0,0.00024387,3]
[419661577,1775262646526,-339.0,0.00024387,3]
[419661579,1775262646536,-339.0,0.00024387,3]
[419661581,1775262646546,-339.0,0.00024387,3]
[419661583,1775262646556,-339.0,0.00024387,3]
[419661585,1775262646566,-339.0,0.00024387,3]
[419661586,1775262646575,-339.0,0.00024387,3]
[419661588,1775262646585,-422.2802317,0.00024387,3]
[419661590,1775262646595,-179.0,0.00024387,3]
[419661592,1775262646604,-179.0,0.00024387,3]
[419661594,1775262646614,-179.40870711,0.00024387,3]
[419661596,1775262646623,-300.3914015,0.00024387,3]
[419661598,1775262646633,-270.83333333,0.00024387,3]
[419661599,1775262646643,-162.0,0.00024484,3]
[419661601,1775262646652,-151.0,0.00024635,2]
[419661603,1775262646662,-151.0,0.00024635,2]
[419661605,1775262646672,-151.0,0.00024635,2]
[419661607,1775262646681,-151.0,0.00024635,2]
[419661609,1775262646691,-151.0,0.00024635,2]
[419661611,1775262646700,-151.0,0.00024635,2]
[419661612,1775262646709,-9769.98,0.00024636,3]
[419661614,1775262646718,-6021.04,0.00024636,3]
[419661616,1775262646727,-3010.52,0.00024636,3]
[419661618,1775262646736,-1505.26,0.00024636,3]
[419661620,1775262646746,-752.64,0.00024636,3]
[419661622,1775262646755,-376.32,0.00024636,3]
[419661623,1775262646765,-270.83333333,0.00024636,3]
[419661625,1775262646774,-500.0,0.00024645,2]
[419661627,1775262646783,-737.01,0.00024658,5]
[419661629,1775262646792,-197.90368321,0.00024662,2]
[419661631,1775262646801,-1202.62473601,0.00024662,2]
[419661632,1775262646810,-173.981093,0.00024731,2]
[419661634,1775262646820,-301.540323,0.00024736,2]
[419661636,1775262646828,-151.0,0.00024736,2]
[419661638,1775262646838,-151.0,0.00024736,2]
[419661639,1775262646847,-151.0,0.00024736,2]
[419661641,1775262646857,-151.0,0.00024736,2]
[419661643,1775262646866,-151.338529,0.00024736,2]
[419661645,1775262646876,-151.0,0.00024736,2]
[419661647,1775262646886,-151.0,0.00024736,2]
[419661649,1775262646895,-151.0,0.00024736,2]
[419661651,1775262646904,-151.0,0.00024736,2]
[419661653,1775262646913,-151.0,0.00024736,2]
[419661655,1775262646923,-151.0,0.00024736,2]
[419661657,1775262646932,-151.0,0.00024736,2]
[419661660,1775262646942,-151.0,0.00024736,2]
[419661661,1775262646952,-151.0,0.00024736,2]
[419661664,1775262646962,-151.0,0.00024736,2]
[419661665,1775262646972,-151.0,0.00024736,2]
[419661667,1775262646982,-151.0,0.00024736,2]
[419661669,1775262646991,-193.885446,0.00024736,2]
[419661671,1775262647000,-193.885446,0.00024736,2]
[419661673,1775262647010,-193.885446,0.00024736,2]
[419661676,1775262647020,-193.885446,0.00024736,2]
[419661678,1775262647029,-151.0,0.00024736,2]
[419661680,1775262647039,-196.0474,0.00024736,2]
[419661681,1775262647048,-151.0,0.00024736,2]
[419661682,1775262647057,-151.0,0.00024736,2]
[419661683,1775262647067,-151.0,0.00024736,2]
[419661684,1775262647077,-151.0,0.00024736,2]
[419661685,1775262647086,-151.0,0.00024736,2]
[419661686,1775262647095,-151.0,0.00024736,2]
[419661687,1775262647105,-631.980692,0.00024736,2]